[Event "Titled Tuesday Blitz June 21 Late 2022"]
[White "Harvey, Marcus R"]
[Black "Novikova, Galina"]
[WhiteFideId "400092"]
[BlackFideId "4157095"]
[WhiteElo "2485"]
[BlackElo "1863"]
[Result "0-1"]
[Round "05"]
[TimeControl "180+1"]
[Date "2022.06.22"]
[WhiteClock "0:00:08"]
[BlackClock "0:00:03"]

1. c4 {[%clk 0:02:58]}  e6 {[%clk 0:02:59]} 2. Nf3 {[%clk 0:02:57]}  f5 {[%clk 0:02:59]} 3. Nc3 {[%clk 0:02:53]}  Nf6 {[%clk 0:02:59]} 4. g3 {[%clk 0:02:52]}  d6 {[%clk 0:02:59]} 5. d4 {[%clk 0:02:51]}  Be7 {[%clk 0:03:00]} 6. Bg2 {[%clk 0:02:52]}  O-O {[%clk 0:03:01]} 7. O-O {[%clk 0:02:52]}  a5 {[%clk 0:03:01]} 8. Re1 {[%clk 0:02:50]}  Ne4 {[%clk 0:02:50]} 9. Qd3 {[%clk 0:02:49]}  d5 {[%clk 0:02:47]} 10. Ne5 {[%clk 0:02:40]}  c6 {[%clk 0:02:45]} 11. f3 {[%clk 0:02:34]}  Nxc3 {[%clk 0:02:45]} 12. bxc3 {[%clk 0:02:33]}  Nd7 {[%clk 0:02:41]} 13. Nxd7 {[%clk 0:02:26]}  Bxd7 {[%clk 0:02:37]} 14. e4 {[%clk 0:02:17]}  fxe4 {[%clk 0:02:12]} 15. fxe4 {[%clk 0:02:18]}  Be8 {[%clk 0:02:07]} 16. Bh3 {[%clk 0:01:41]}  Bf7 {[%clk 0:01:55]} 17. c5 {[%clk 0:01:29]}  Bg5 {[%clk 0:01:40]} 18. Bxg5 {[%clk 0:01:17]}  Qxg5 {[%clk 0:01:41]} 19. Qe3 {[%clk 0:01:13]}  Qh5 {[%clk 0:01:19]} 20. Bg2 {[%clk 0:01:10]}  e5 {[%clk 0:00:54]} 21. exd5 {[%clk 0:01:08]}  exd4 {[%clk 0:00:51]} 22. Qxd4 {[%clk 0:01:08]}  Bxd5 {[%clk 0:00:49]} 23. Re5 {[%clk 0:01:07]}  Qg6 {[%clk 0:00:24]} 24. Bxd5+ {[%clk 0:01:06]}  cxd5 {[%clk 0:00:25]} 25. Qxd5+ {[%clk 0:01:06]}  Kh8 {[%clk 0:00:24]} 26. Qxb7 {[%clk 0:00:48]}  Qf6 {[%clk 0:00:24]} 27. Qe4 {[%clk 0:00:47]}  Qf2+ {[%clk 0:00:19]} 28. Kh1 {[%clk 0:00:48]}  Rad8 {[%clk 0:00:20]} 29. Qg2 {[%clk 0:00:39]}  Qf6 {[%clk 0:00:20]} 30. Rae1 {[%clk 0:00:36]}  h6 {[%clk 0:00:20]} 31. Qe2 {[%clk 0:00:22]}  a4 {[%clk 0:00:14]} 32. c4 {[%clk 0:00:19]}  Rd4 {[%clk 0:00:12]} 33. Re8 {[%clk 0:00:16]}  Rd8 {[%clk 0:00:08]} 34. Rxf8+ {[%clk 0:00:15]}  Rxf8 {[%clk 0:00:09]} 35. Qe4 {[%clk 0:00:14]}  Rc8 {[%clk 0:00:05]} 36. Qd5 {[%clk 0:00:11]}  Qf2 {[%clk 0:00:03]} 37. Rd1 {[%clk 0:00:10]}  Rf8 {[%clk 0:00:03]} 38. c6 {[%clk 0:00:09]}  Qe2 {[%clk 0:00:02]} 39. c7 {[%clk 0:00:08]}  Rf1+ {[%clk 0:00:03]} 0-1


[Site "https://www.chess.com"]

[Event "Titled Tuesday Blitz June 21 Late 2022"]
[White "Hoffmann, Asa"]
[Black "Gardezi, Arsal"]
[WhiteFideId "2001470"]
[BlackFideId "30949521"]
[WhiteElo "2117"]
[BlackElo "1781"]
[Result "1-0"]
[Round "05"]
[TimeControl "180+1"]
[Date "2022.06.22"]
[WhiteClock "0:00:51"]
[BlackClock "0:00:02"]

1. d4 {[%clk 0:02:52]}  d5 {[%clk 0:02:59]} 2. Bg5 {[%clk 0:02:51]}  c5 {[%clk 0:02:54]} 3. dxc5 {[%clk 0:02:48]}  Nc6 {[%clk 0:02:50]} 4. c3 {[%clk 0:02:47]}  Nf6 {[%clk 0:02:47]} 5. e3 {[%clk 0:02:44]}  e6 {[%clk 0:02:44]} 6. b4 {[%clk 0:02:43]}  a5 {[%clk 0:02:36]} 7. b5 {[%clk 0:02:37]}  Ne5 {[%clk 0:02:36]} 8. Qd4 {[%clk 0:02:28]}  Ned7 {[%clk 0:02:30]} 9. c6 {[%clk 0:02:26]}  bxc6 {[%clk 0:02:20]} 10. bxc6 {[%clk 0:02:26]}  Nc5 {[%clk 0:02:16]} 11. Bb5 {[%clk 0:02:23]}  Qc7 {[%clk 0:02:14]} 12. Nf3 {[%clk 0:02:15]}  Nfe4 {[%clk 0:02:10]} 13. Bf4 {[%clk 0:02:11]}  Bd6 {[%clk 0:02:07]} 14. Bxd6 {[%clk 0:02:07]}  Nxd6 {[%clk 0:02:07]} 15. Qxg7 {[%clk 0:02:04]}  Rf8 {[%clk 0:01:57]} 16. a4 {[%clk 0:02:03]}  Rb8 {[%clk 0:01:49]} 17. O-O {[%clk 0:02:00]}  Nxb5 {[%clk 0:01:49]} 18. axb5 {[%clk 0:02:00]}  Rxb5 {[%clk 0:01:49]} 19. Ng5 {[%clk 0:02:00]}  Ke7 {[%clk 0:01:27]} 20. Nxh7 {[%clk 0:01:58]}  Rd8 {[%clk 0:01:12]} 21. Ng5 {[%clk 0:01:49]}  Rf8 {[%clk 0:01:06]} 22. Nh7 {[%clk 0:01:48]}  Rd8 {[%clk 0:01:05]} 23. Qf6+ {[%clk 0:01:48]}  Kd6 {[%clk 0:01:04]} 24. Ng5 {[%clk 0:01:47]}  Rf8 {[%clk 0:00:40]} 25. Na3 {[%clk 0:01:43]}  Rb3 {[%clk 0:00:36]} 26. c4 {[%clk 0:01:41]}  Qxc6 {[%clk 0:00:20]} 27. Nb5+ {[%clk 0:01:32]}  Rxb5 {[%clk 0:00:19]} 28. cxb5 {[%clk 0:01:31]}  Qd7 {[%clk 0:00:20]} 29. Rfd1 {[%clk 0:01:23]}  Qb7 {[%clk 0:00:13]} 30. Rxa5 {[%clk 0:01:15]}  Nd7 {[%clk 0:00:13]} 31. Nxf7+ {[%clk 0:01:01]}  Kc7 {[%clk 0:00:09]} 32. Qxe6 {[%clk 0:01:00]}  Kb8 {[%clk 0:00:06]} 33. Rc1 {[%clk 0:00:53]}  Rxf7 {[%clk 0:00:02]} 34. Qd6+ {[%clk 0:00:52]}  Qc7 {[%clk 0:00:02]} 35. Qxc7# {[%clk 0:00:51]} 1-0


[Site "https://www.chess.com"]

[Event "Titled Tuesday Blitz June 21 Late 2022"]
[White "Holt, Conrad"]
[Black "Jaracz, Pawel"]
[WhiteFideId "2034387"]
[BlackFideId "1102222"]
[WhiteElo "2586"]
[BlackElo "2459"]
[Result "1-0"]
[Round "05"]
[TimeControl "180+1"]
[Date "2022.06.21"]
[WhiteClock "0:00:16"]
[BlackClock "0:00:03"]

1. d4 {[%clk 0:03:00]}  Nf6 {[%clk 0:02:54]} 2. c4 {[%clk 0:03:01]}  e6 {[%clk 0:02:55]} 3. Nc3 {[%clk 0:03:01]}  Bb4 {[%clk 0:02:55]} 4. Qc2 {[%clk 0:03:01]}  d5 {[%clk 0:02:54]} 5. cxd5 {[%clk 0:03:01]}  exd5 {[%clk 0:02:52]} 6. Bg5 {[%clk 0:03:01]}  h6 {[%clk 0:02:52]} 7. Bxf6 {[%clk 0:03:01]}  Qxf6 {[%clk 0:02:51]} 8. a3 {[%clk 0:03:02]}  Bxc3+ {[%clk 0:02:49]} 9. Qxc3 {[%clk 0:03:03]}  O-O {[%clk 0:02:48]} 10. e3 {[%clk 0:03:03]}  Bf5 {[%clk 0:02:38]} 11. Ne2 {[%clk 0:03:01]}  Nd7 {[%clk 0:02:32]} 12. Qxc7 {[%clk 0:02:44]}  Rfc8 {[%clk 0:02:31]} 13. Qa5 {[%clk 0:02:35]}  Rc2 {[%clk 0:02:30]} 14. Nf4 {[%clk 0:02:33]}  Nb6 {[%clk 0:02:11]} 15. Bd3 {[%clk 0:02:25]}  Bxd3 {[%clk 0:02:10]} 16. Nxd3 {[%clk 0:02:25]}  Qf5 {[%clk 0:01:53]} 17. Rd1 {[%clk 0:01:48]}  Nc4 {[%clk 0:01:53]} 18. Qa4 {[%clk 0:01:44]}  Rxb2 {[%clk 0:00:30]} 19. O-O {[%clk 0:01:43]}  Rd2 {[%clk 0:00:27]} 20. Qb3 {[%clk 0:01:34]}  Rc8 {[%clk 0:00:17]} 21. a4 {[%clk 0:00:59]}  b6 {[%clk 0:00:17]} 22. h3 {[%clk 0:00:51]}  Qe4 {[%clk 0:00:16]} 23. Nf4 {[%clk 0:00:47]}  g5 {[%clk 0:00:13]} 24. Nh5 {[%clk 0:00:45]}  Rc6 {[%clk 0:00:10]} 25. Rc1 {[%clk 0:00:41]}  Rd3 {[%clk 0:00:05]} 26. Qb5 {[%clk 0:00:27]}  Qg6 {[%clk 0:00:03]} 27. g4 {[%clk 0:00:16]} 1-0


[Site "https://www.chess.com"]

[Event "Titled Tuesday Blitz June 21 Late 2022"]
[White "Ibarra Jerez, Jose Carlos"]
[Black "Wagner, Dennis"]
[WhiteFideId "2226332"]
[BlackFideId "24650684"]
[WhiteElo "2628"]
[BlackElo "2355"]
[Result "0-1"]
[Round "05"]
[TimeControl "180+1"]
[Date "2022.06.21"]
[WhiteClock "0:00:01"]
[BlackClock "0:00:07"]

1. Nf3 {[%clk 0:03:00]}  d5 {[%clk 0:02:58]} 2. g3 {[%clk 0:03:01]}  Nf6 {[%clk 0:02:55]} 3. Bg2 {[%clk 0:03:01]}  e6 {[%clk 0:02:56]} 4. O-O {[%clk 0:03:00]}  Be7 {[%clk 0:02:57]} 5. c4 {[%clk 0:03:01]}  O-O {[%clk 0:02:57]} 6. b3 {[%clk 0:03:01]}  d4 {[%clk 0:02:56]} 7. Bb2 {[%clk 0:02:58]}  c5 {[%clk 0:02:51]} 8. b4 {[%clk 0:02:59]}  Re8 {[%clk 0:02:48]} 9. d3 {[%clk 0:02:55]}  a5 {[%clk 0:02:43]} 10. bxc5 {[%clk 0:02:52]}  Nc6 {[%clk 0:02:40]} 11. Na3 {[%clk 0:02:52]}  Bxc5 {[%clk 0:02:40]} 12. Nb5 {[%clk 0:02:52]}  e5 {[%clk 0:02:40]} 13. Nd2 {[%clk 0:02:51]}  a4 {[%clk 0:02:39]} 14. Ba3 {[%clk 0:02:47]}  Bxa3 {[%clk 0:02:38]} 15. Nxa3 {[%clk 0:02:48]}  Qe7 {[%clk 0:02:28]} 16. Qc1 {[%clk 0:02:47]}  Bf5 {[%clk 0:02:21]} 17. Rb1 {[%clk 0:02:40]}  h5 {[%clk 0:02:19]} 18. Rb5 {[%clk 0:02:32]}  h4 {[%clk 0:02:14]} 19. Qb2 {[%clk 0:02:30]}  Ra7 {[%clk 0:02:12]} 20. Rb1 {[%clk 0:02:13]}  h3 {[%clk 0:01:48]} 21. Bh1 {[%clk 0:02:03]}  Bg4 {[%clk 0:01:25]} 22. Ne4 {[%clk 0:01:58]}  Nxe4 {[%clk 0:00:44]} 23. Bxe4 {[%clk 0:01:59]}  Nd8 {[%clk 0:00:42]} 24. c5 {[%clk 0:01:55]}  Bd7 {[%clk 0:00:40]} 25. Nc4 {[%clk 0:01:44]}  Bxb5 {[%clk 0:00:38]} 26. Qxb5 {[%clk 0:01:45]}  Ne6 {[%clk 0:00:33]} 27. Nd6 {[%clk 0:01:38]}  Rb8 {[%clk 0:00:32]} 28. Qb6 {[%clk 0:01:31]}  Ra6 {[%clk 0:00:32]} 29. Qxa6 {[%clk 0:01:31]}  bxa6 {[%clk 0:00:33]} 30. Rxb8+ {[%clk 0:01:31]}  Nf8 {[%clk 0:00:33]} 31. Bd5 {[%clk 0:01:26]}  g6 {[%clk 0:00:31]} 32. Nxf7 {[%clk 0:01:23]}  Kg7 {[%clk 0:00:29]} 33. Nd6 {[%clk 0:01:12]}  Nd7 {[%clk 0:00:20]} 34. Rb7 {[%clk 0:01:02]}  Kf8 {[%clk 0:00:18]} 35. Ne4 {[%clk 0:00:58]}  Qd8 {[%clk 0:00:17]} 36. c6 {[%clk 0:00:41]}  Qa5 {[%clk 0:00:17]} 37. Kf1 {[%clk 0:00:41]}  Qxd5 {[%clk 0:00:13]} 38. cxd7 {[%clk 0:00:40]}  Ke7 {[%clk 0:00:13]} 39. Ra7 {[%clk 0:00:18]}  Qxa2 {[%clk 0:00:12]} 40. f4 {[%clk 0:00:18]}  exf4 {[%clk 0:00:10]} 41. gxf4 {[%clk 0:00:12]}  Qb1+ {[%clk 0:00:09]} 42. Kf2 {[%clk 0:00:12]}  Qc1 {[%clk 0:00:10]} 43. Kg3 {[%clk 0:00:10]}  Qe3+ {[%clk 0:00:10]} 44. Kg4 {[%clk 0:00:07]}  Qxe2+ {[%clk 0:00:10]} 45. Kg5 {[%clk 0:00:06]}  Qxh2 {[%clk 0:00:10]} 46. Nc5 {[%clk 0:00:03]}  Qg3+ {[%clk 0:00:11]} 47. Kh6 {[%clk 0:00:02]}  Qxf4+ {[%clk 0:00:11]} 48. Kh7 {[%clk 0:00:03]}  h2 {[%clk 0:00:10]} 49. d8=Q+ {[%clk 0:00:03]}  Kxd8 {[%clk 0:00:11]} 50. Ne6+ {[%clk 0:00:03]}  Kc8 {[%clk 0:00:11]} 51. Nxf4 {[%clk 0:00:03]}  h1=Q+ {[%clk 0:00:11]} 52. Kg7 {[%clk 0:00:03]}  a3 {[%clk 0:00:10]} 53. Rxa6 {[%clk 0:00:02]}  Qb7+ {[%clk 0:00:06]} 54. Kxg6 {[%clk 0:00:01]}  Qxa6+ {[%clk 0:00:07]} 0-1


[Site "https://www.chess.com"]

[Event "Titled Tuesday Blitz June 21 Late 2022"]
[White "Isajevsky, Anton"]
[Black "Cappelletto, Joshuaede"]
[WhiteFideId "4142500"]
[BlackFideId "2824383"]
[WhiteElo "2510"]
[BlackElo "1761"]
[Result "1-0"]
[Round "05"]
[TimeControl "180+1"]
[Date "2022.06.22"]
[WhiteClock "0:00:07"]
[BlackClock "0:00:08"]

1. c4 {[%clk 0:03:00]}  g6 {[%clk 0:02:55]} 2. Nc3 {[%clk 0:02:56]}  Bg7 {[%clk 0:02:56]} 3. g3 {[%clk 0:02:47]}  d6 {[%clk 0:02:55]} 4. Bg2 {[%clk 0:02:45]}  e5 {[%clk 0:02:55]} 5. e3 {[%clk 0:02:42]}  Nc6 {[%clk 0:02:52]} 6. Nge2 {[%clk 0:02:41]}  f5 {[%clk 0:02:52]} 7. O-O {[%clk 0:02:41]}  Nf6 {[%clk 0:02:52]} 8. d3 {[%clk 0:02:41]}  O-O {[%clk 0:02:53]} 9. Rb1 {[%clk 0:02:39]}  g5 {[%clk 0:02:45]} 10. f4 {[%clk 0:02:37]}  h6 {[%clk 0:02:40]} 11. b4 {[%clk 0:02:36]}  Qe8 {[%clk 0:02:40]} 12. b5 {[%clk 0:02:25]}  Ne7 {[%clk 0:02:40]} 13. Qd2 {[%clk 0:02:12]}  Rb8 {[%clk 0:02:30]} 14. Ba3 {[%clk 0:01:34]}  exf4 {[%clk 0:02:27]} 15. exf4 {[%clk 0:01:33]}  Qh5 {[%clk 0:02:16]} 16. Rbe1 {[%clk 0:01:20]}  Bd7 {[%clk 0:01:57]} 17. Bc1 {[%clk 0:01:13]}  g4 {[%clk 0:01:50]} 18. Nd4 {[%clk 0:01:03]}  Qf7 {[%clk 0:01:24]} 19. Re2 {[%clk 0:01:00]}  c5 {[%clk 0:01:19]} 20. bxc6 {[%clk 0:00:58]}  Nxc6 {[%clk 0:01:19]} 21. Ndb5 {[%clk 0:00:52]}  Ne8 {[%clk 0:01:08]} 22. Nd5 {[%clk 0:00:45]}  Kh8 {[%clk 0:01:03]} 23. Bb2 {[%clk 0:00:43]}  a6 {[%clk 0:00:59]} 24. Bxg7+ {[%clk 0:00:39]}  Qxg7 {[%clk 0:01:00]} 25. Nbc3 {[%clk 0:00:37]}  Nf6 {[%clk 0:00:57]} 26. Nb6 {[%clk 0:00:32]}  Rbe8 {[%clk 0:00:51]} 27. Nxd7 {[%clk 0:00:31]}  Nxd7 {[%clk 0:00:51]} 28. Rfe1 {[%clk 0:00:28]}  Rxe2 {[%clk 0:00:38]} 29. Rxe2 {[%clk 0:00:29]}  Qd4+ {[%clk 0:00:35]} 30. Kf1 {[%clk 0:00:27]}  Nc5 {[%clk 0:00:33]} 31. Re3 {[%clk 0:00:20]}  Nb4 {[%clk 0:00:26]} 32. Ne2 {[%clk 0:00:21]}  Qa1+ {[%clk 0:00:22]} 33. Kf2 {[%clk 0:00:21]}  Nxa2 {[%clk 0:00:13]} 34. d4 {[%clk 0:00:21]}  Ne4+ {[%clk 0:00:10]} 35. Bxe4 {[%clk 0:00:21]}  fxe4 {[%clk 0:00:11]} 36. Rxe4 {[%clk 0:00:22]}  Qb1 {[%clk 0:00:11]} 37. Re6 {[%clk 0:00:20]}  Nb4 {[%clk 0:00:10]} 38. Rxh6+ {[%clk 0:00:16]}  Kg7 {[%clk 0:00:10]} 39. Rh4 {[%clk 0:00:16]}  Qf5 {[%clk 0:00:09]} 40. Nc3 {[%clk 0:00:11]}  Re8 {[%clk 0:00:07]} 41. Qd1 {[%clk 0:00:07]}  Nd3+ {[%clk 0:00:05]} 42. Kg2 {[%clk 0:00:07]}  Ne1+ {[%clk 0:00:05]} 43. Kf2 {[%clk 0:00:07]}  Nf3 {[%clk 0:00:05]} 44. Rxg4+ {[%clk 0:00:08]}  Qxg4 {[%clk 0:00:06]} 45. Qxf3 {[%clk 0:00:08]}  Qxf3+ {[%clk 0:00:06]} 46. Kxf3 {[%clk 0:00:09]}  Rc8 {[%clk 0:00:07]} 47. Ne4 {[%clk 0:00:09]}  Rxc4 {[%clk 0:00:07]} 48. Nxd6 {[%clk 0:00:09]}  Rc2 {[%clk 0:00:07]} 49. Nxb7 {[%clk 0:00:08]}  Rb2 {[%clk 0:00:07]} 50. Nc5 {[%clk 0:00:08]}  a5 {[%clk 0:00:07]} 51. h4 {[%clk 0:00:08]}  Kf7 {[%clk 0:00:07]} 52. g4 {[%clk 0:00:08]}  Rd2 {[%clk 0:00:07]} 53. Ke4 {[%clk 0:00:08]}  Rh2 {[%clk 0:00:06]} 54. h5 {[%clk 0:00:09]}  Rg2 {[%clk 0:00:07]} 55. g5 {[%clk 0:00:09]}  Rh2 {[%clk 0:00:07]} 56. h6 {[%clk 0:00:09]}  Kg6 {[%clk 0:00:07]} 57. Ke5 {[%clk 0:00:06]}  Re2+ {[%clk 0:00:07]} 58. Ne4 {[%clk 0:00:04]}  Rf2 {[%clk 0:00:08]} 59. d5 {[%clk 0:00:04]}  Re2 {[%clk 0:00:07]} 60. d6 {[%clk 0:00:04]}  Re1 {[%clk 0:00:07]} 61. d7 {[%clk 0:00:04]}  Rd1 {[%clk 0:00:08]} 62. f5+ {[%clk 0:00:05]}  Kh5 {[%clk 0:00:07]} 63. h7 {[%clk 0:00:05]}  Kg4 {[%clk 0:00:08]} 64. h8=Q {[%clk 0:00:05]}  Rxd7 {[%clk 0:00:08]} 65. Nf6+ {[%clk 0:00:06]}  Kf3 {[%clk 0:00:08]} 66. Nxd7 {[%clk 0:00:07]} 1-0


[Site "https://www.chess.com"]

[Event "Titled Tuesday Blitz June 21 Late 2022"]
[White "Jobava, Baadur"]
[Black "Boyer, Mahel"]
[WhiteFideId "13601520"]
[BlackFideId "45102422"]
[WhiteElo "2617"]
[BlackElo "2400"]
[Result "1-0"]
[Round "05"]
[TimeControl "180+1"]
[Date "2022.06.21"]
[WhiteClock "0:02:13"]
[BlackClock "0:00:02"]

1. e4 {[%clk 0:02:57]}  Nc6 {[%clk 0:02:57]} 2. f4 {[%clk 0:02:47]}  d5 {[%clk 0:02:52]} 3. e5 {[%clk 0:02:48]}  Bf5 {[%clk 0:02:40]} 4. Nf3 {[%clk 0:02:47]}  e6 {[%clk 0:02:40]} 5. Bb5 {[%clk 0:02:46]}  Ne7 {[%clk 0:02:41]} 6. d3 {[%clk 0:02:46]}  a6 {[%clk 0:02:40]} 7. Bxc6+ {[%clk 0:02:44]}  Nxc6 {[%clk 0:02:41]} 8. O-O {[%clk 0:02:44]}  Be7 {[%clk 0:02:31]} 9. Kh1 {[%clk 0:02:44]}  O-O {[%clk 0:02:29]} 10. Be3 {[%clk 0:02:44]}  d4 {[%clk 0:02:28]} 11. Bg1 {[%clk 0:02:44]}  Qd5 {[%clk 0:02:28]} 12. Nbd2 {[%clk 0:02:44]}  Rfd8 {[%clk 0:01:17]} 13. h3 {[%clk 0:02:44]}  h6 {[%clk 0:01:08]} 14. Nb3 {[%clk 0:02:44]}  Bc5 {[%clk 0:01:07]} 15. c4 {[%clk 0:02:43]}  dxc3 {[%clk 0:01:04]} 16. Nxc5 {[%clk 0:02:44]}  cxb2 {[%clk 0:01:02]} 17. Rb1 {[%clk 0:02:44]}  b6 {[%clk 0:01:01]} 18. Nb3 {[%clk 0:02:43]}  Bxd3 {[%clk 0:01:00]} 19. Rxb2 {[%clk 0:02:43]}  Bxf1 {[%clk 0:00:59]} 20. Qxf1 {[%clk 0:02:44]}  Qd1 {[%clk 0:00:51]} 21. Qf2 {[%clk 0:02:44]}  Nb4 {[%clk 0:00:51]} 22. Qg3 {[%clk 0:02:41]}  Rd3 {[%clk 0:00:40]} 23. Nbd2 {[%clk 0:02:24]}  Nd5 {[%clk 0:00:24]} 24. Ne4 {[%clk 0:02:24]}  Kh8 {[%clk 0:00:20]} 25. Nf2 {[%clk 0:02:24]}  Rxf3 {[%clk 0:00:17]} 26. Qxf3 {[%clk 0:02:25]}  Qxf3 {[%clk 0:00:17]} 27. gxf3 {[%clk 0:02:26]}  Nxf4 {[%clk 0:00:18]} 28. Rd2 {[%clk 0:02:25]}  Nd5 {[%clk 0:00:17]} 29. Ne4 {[%clk 0:02:25]}  Kh7 {[%clk 0:00:16]} 30. Kg2 {[%clk 0:02:25]}  g5 {[%clk 0:00:15]} 31. Kg3 {[%clk 0:02:25]}  Kg6 {[%clk 0:00:16]} 32. Rc2 {[%clk 0:02:18]}  Kf5 {[%clk 0:00:14]} 33. Bd4 {[%clk 0:02:18]}  h5 {[%clk 0:00:09]} 34. Bb2 {[%clk 0:02:17]}  h4+ {[%clk 0:00:08]} 35. Kf2 {[%clk 0:02:18]}  c5 {[%clk 0:00:08]} 36. Nd6+ {[%clk 0:02:17]}  Kg6 {[%clk 0:00:08]} 37. Bc1 {[%clk 0:02:17]}  Rd8 {[%clk 0:00:07]} 38. Ne4 {[%clk 0:02:13]}  Nf4 {[%clk 0:00:01]} 39. Bxf4 {[%clk 0:02:12]}  gxf4 {[%clk 0:00:02]} 40. Rb2 {[%clk 0:02:12]}  b5 {[%clk 0:00:02]} 41. Nxc5 {[%clk 0:02:12]}  Kf5 {[%clk 0:00:01]} 42. Nxa6 {[%clk 0:02:12]}  Rd5 {[%clk 0:00:02]} 43. Nc7 {[%clk 0:02:12]}  Rxe5 {[%clk 0:00:03]} 44. Nxb5 {[%clk 0:02:12]}  Rd5 {[%clk 0:00:02]} 45. a4 {[%clk 0:02:12]}  e5 {[%clk 0:00:01]} 46. a5 {[%clk 0:02:12]}  e4 {[%clk 0:00:01]} 47. fxe4+ {[%clk 0:02:12]}  Kxe4 {[%clk 0:00:02]} 48. Nc3+ {[%clk 0:02:13]} 1-0


[Site "https://www.chess.com"]

[Event "Titled Tuesday Blitz June 21 Late 2022"]
[White "Kanyamarala, Trisha"]
[Black "Roque Sola, Jose Luis"]
[WhiteFideId "45004722"]
[BlackFideId "5120390"]
[WhiteElo "2134"]
[BlackElo "1983"]
[Result "1-0"]
[Round "05"]
[TimeControl "180+1"]
[Date "2022.06.22"]
[WhiteClock "0:02:07"]
[BlackClock "0:01:49"]

1. d4 {[%clk 0:03:00]}  Nf6 {[%clk 0:02:56]} 2. c4 {[%clk 0:03:00]}  e6 {[%clk 0:02:56]} 3. Nc3 {[%clk 0:03:01]}  Bb4 {[%clk 0:02:55]} 4. Qc2 {[%clk 0:02:56]}  O-O {[%clk 0:02:54]} 5. a3 {[%clk 0:02:52]}  Bxc3+ {[%clk 0:02:48]} 6. bxc3 {[%clk 0:02:52]}  b6 {[%clk 0:02:48]} 7. Bg5 {[%clk 0:02:52]}  h6 {[%clk 0:02:47]} 8. Bh4 {[%clk 0:02:51]}  Bb7 {[%clk 0:02:40]} 9. Nf3 {[%clk 0:02:51]}  Be4 {[%clk 0:02:32]} 10. Qd2 {[%clk 0:02:49]}  c5 {[%clk 0:02:25]} 11. Qf4 {[%clk 0:02:36]}  Bf5 {[%clk 0:02:13]} 12. e4 {[%clk 0:02:14]}  g5 {[%clk 0:01:49]} 13. Nxg5 {[%clk 0:02:09]}  hxg5 {[%clk 0:01:49]} 14. Bxg5 {[%clk 0:02:08]}  Bg6 {[%clk 0:01:49]} 15. Bxf6 {[%clk 0:02:07]} 1-0


[Site "https://www.chess.com"]